[Event "EIWCC 2017"]
[Site "Riga"]
[Date "2017.04.13"]
[Round "3"]
[White "Makka, Ioulia"]
[Black "Golubenko, Valentina"]
[Result "1/2-1/2"]
[ECO "C11"]
[WhiteElo "2069"]
[BlackElo "2271"]
[Annotator "NA"]
[PlyCount "180"]
[EventDate "2017.??.??"]
[EventType "swiss"]
[EventCountry "LAT"]
[SourceTitle "playchess.com"]
[Source "ChessBase"]
[SourceQuality "1"]
[TimeControl "40/5400+30:1800+30"]

1. e4 {[%emt 0:00:00]} e6 {[%emt 0:00:24]} 2. d4 {[%emt 0:00:00]} d5 {[%emt 0:00:06]} 3. Nc3 {[%emt 0:00:00]} Nf6 {[%emt 0:00:39]} 4. e5 {[%emt 0:00:03]} Nfd7 {[%emt 0:00:12]} 5. f4 {[%emt 0:00:19]} c5 {[%emt 0:02:45]} 6. Nf3 {[%emt 0:00:13]} Nc6 {[%emt 0:00:27]} 7. Be3 {[%emt 0:00:53]} a6 {[%emt 0:05:55]} 8. Qd2 {[%emt 0:00:35]} b5 {[%emt 0:01:32]} 9. Nd1 {[%emt 0:00:11] C11: French: Classical System: 4 e5 and 4 Bg5 dxe4} cxd4 {[%emt 0:09:15]} (9... Qb6 10. c3 cxd4 11. cxd4 Bb4 12. Nc3 Na5 13. Bd3 Nc4 14. Bxc4 bxc4 15. O-O f5 16. b3 Qc6 17. a3 Ba5 18. b4 Bd8 19. Bf2 Nf8 20. Bh4 Bb6 21. a4 {½-½ (21) Predojevic,B (2640)-Buhmann,R (2633) Germany 2017}) 10. Nxd4 {[%emt 0:02:10]} Nxd4 {[%emt 0:00:51]} 11. Bxd4 {[%emt 0:00:26]} Bb7 {[%emt 0:10:36]} 12. Nf2 $146 {[%emt 0:07:37]} (12. a4 bxa4 13. Bd3 Nc5 14. O-O Nxd3 15. cxd3 Be7 16. f5 exf5 {1-0 (32) Ubiennykh,E (2360)-Dibrov,I (2298) Novokuznetsk 2013}) 12... Be7 {[%emt 0:02:37]} 13. Be2 {[%emt 0:06:20]} O-O {[%emt 0:03:39]} 14. Bg4 {[%emt 0:12:57]} Bc5 {[%emt 0:06:28]} 15. c3 {[%emt 0:03:22]} Qe7 {[%emt 0:03:19]} 16. O-O {[%emt 0:04:30]} a5 {[%emt 0:03:28]} 17. Rae1 {[%emt 0:08:22]} g6 {[%emt 0:04:18]} 18. Nd3 {[%emt 0:08:47]} Bxd4+ {[%emt 0:05:02]} 19. cxd4 {[%emt 0:00:05]} Rfc8 {[%emt 0:00:27]} 20. Re3 {[%emt 0:03:08]} Rc4 {[%emt 0:02:11]} 21. Ne1 {[%emt 0:21:22]} Qb4 {[%emt 0:11:31]} 22. Rd3 {[%emt 0:00:20]} Qxd2 {[%emt 0:02:17]} 23. Rxd2 {[%emt 0:00:03]} Rac8 {[%emt 0:00:39]} 24. Be2 {[%emt 0:02:34]} Rc1 {[%emt 0:05:59]} 25. Bxb5 {[%emt 0:01:40]} Nb6 {[%emt 0:00:57]} 26. b3 {[%emt 0:01:35]} Bc6 {[%emt 0:02:12]} 27. Be2 {[%emt 0:07:03]} Bd7 {[%emt 0:01:58]} 28. Nd3 {[%emt 0:02:27]} R8c2 {[%emt 0:02:54]} 29. Nxc1 {[%emt 0:02:22]} Rxd2 {[%emt 0:00:05]} 30. Rd1 {[%emt 0:02:32]} Rb2 {[%emt 0:00:35]} 31. Kf1 {[%emt 0:01:04]} Nc8 {[%emt 0:04:15]} 32. Ke1 {[%emt 0:00:25]} a4 {[%emt 0:03:07]} 33. Rd2 {[%emt 0:01:06]} a3 {[%emt 0:00:29]} 34. Nd3 {[%emt 0:00:32]} Rb1+ {[%emt 0:01:44]} 35. Rd1 {[%emt 0:00:03]} Rxd1+ {[%emt 0:00:12]} 36. Kxd1 {[%emt 0:01:18]} Na7 {[%emt 0:01:12]} 37. Nb4 {[%emt 0:01:03]} Bb5 {[%emt 0:01:28]} 38. Bxb5 {[%emt 0:00:33]} Nxb5 {[%emt 0:00:02]} 39. Nc2 {[%emt 0:00:24]} Kg7 {[%emt 0:01:47]} 40. Kd2 {[%emt 0:00:00]} g5 {[%emt 0:01:53]} 41. fxg5 {[%emt 0:03:47]} Kg6 {[%emt 0:00:29]} 42. Kd3 {[%emt 0:00:37]} Kxg5 {[%emt 0:00:48]} 43. b4 {[%emt 0:01:58]} f6 {[%emt 0:05:27]} 44. exf6 {[%emt 0:00:29]} Kxf6 {[%emt 0:00:02]} 45. Ne3 {[%emt 0:01:00]} Ke7 {[%emt 0:04:46]} 46. Ng4 {[%emt 0:03:06]} Kf7 {[%emt 0:01:21]} 47. Ne5+ {[%emt 0:01:29]} Kf6 {[%emt 0:00:15]} 48. Nd7+ {[%emt 0:03:13]} Ke7 {[%emt 0:00:29]} 49. Nb6 {[%emt 0:01:43]} Kd6 {[%emt 0:02:05]} 50. Na4 {[%emt 0:01:40]} Kc6 {[%emt 0:01:21]} 51. Nc3 {[%emt 0:01:00]} Nd6 {[%emt 0:00:22]} 52. g4 {[%emt 0:01:52]} Nc4 {[%emt 0:00:56]} 53. g5 {[%emt 0:03:08]} e5 {[%emt 0:00:40]} 54. b5+ {[%emt 0:01:16]} Kd6 {[%emt 0:01:18]} 55. dxe5+ {[%emt 0:01:00]} Nxe5+ {[%emt 0:00:19]} 56. Ke2 {[%emt 0:00:40]} Kc5 {[%emt 0:00:57]} 57. b6 {[%emt 0:01:49]} Kc4 {[%emt 0:13:41]} 58. b7 {[%emt 0:01:01]} Nc6 {[%emt 0:01:29]} 59. Nb1 {[%emt 0:00:19]} Kc5 {[%emt 0:01:23]} 60. Nxa3 {[%emt 0:02:28]} Kb6 {[%emt 0:00:12]} 61. h4 {[%emt 0:01:00]} Kxb7 {[%emt 0:00:06]} 62. Nc2 {[%emt 0:02:02]} Ne7 {[%emt 0:00:50]} 63. Nd4 {[%emt 0:01:31]} Ng6 {[%emt 0:00:52]} 64. Nf3 {[%emt 0:00:24]} Kc6 {[%emt 0:00:50]} 65. Ke3 {[%emt 0:00:15]} Kc5 {[%emt 0:00:12]} 66. h5 {[%emt 0:00:40]} Ne7 {[%emt 0:00:16]} 67. Kd3 {[%emt 0:02:50]} Nf5 {[%emt 0:01:28]} 68. Ne5 {[%emt 0:00:52]} Ng7 {[%emt 0:00:36]} 69. Nd7+ {[%emt 0:00:36]} Kd6 {[%emt 0:00:06]} 70. Nf6 {[%emt 0:00:26]} Ne6 {[%emt 0:01:22]} 71. Nxh7 {[%emt 0:00:33]} Nf4+ {[%emt 0:00:07]} 72. Kd4 {[%emt 0:01:48]} Nxh5 {[%emt 0:00:17]} 73. a4 {[%emt 0:00:44]} Ng7 {[%emt 0:00:19]} 74. g6 {[%emt 0:00:33]} Ne6+ {[%emt 0:00:30]} 75. Kc3 {[%emt 0:00:18]} Kc5 {[%emt 0:00:44]} 76. Nf6 {[%emt 0:00:34]} d4+ {[%emt 0:00:43]} 77. Kb3 {[%emt 0:00:16]} Kd6 {[%emt 0:00:43]} 78. Nh5 {[%emt 0:00:34]} Ke7 {[%emt 0:01:04]} 79. g7 {[%emt 0:00:29]} Kf7 {[%emt 0:00:15]} 80. a5 {[%emt 0:00:24]} d3 {[%emt 0:00:43]} 81. Kc3 {[%emt 0:00:36]} Nc5 {[%emt 0:00:25]} 82. Kb2 {[%emt 0:00:49]} Na4+ {[%emt 0:00:31]} 83. Kb3 {[%emt 0:00:31]} d2 {[%emt 0:00:36]} 84. Kc2 {[%emt 0:00:26]} Nb2 {[%emt 0:00:21]} 85. Kxd2 {[%emt 0:00:20]} Nc4+ {[%emt 0:00:01]} 86. Kd3 {[%emt 0:00:30]} Nxa5 {[%emt 0:00:04]} 87. Ke4 {[%emt 0:00:28]} Nc6 {[%emt 0:00:17]} 88. Kf5 {[%emt 0:00:36]} Nd4+ {[%emt 0:00:28]} 89. Kg5 {[%emt 0:00:23]} Ne6+ {[%emt 0:00:07]} 90. Kf5 {[%emt 0:00:30]} Nxg7+ {[%emt 0:00:06]} 1/2-1/2

[Event "EIWCC 2017"]
[Site "Riga"]
[Date "2017.04.13"]
[Round "3"]
[White "Sinitsina, Anastassia"]
[Black "Komiagina, Maria"]
[Result "0-1"]
[ECO "B48"]
[WhiteElo "2052"]
[BlackElo "2247"]
[Annotator "NA RC"]
[PlyCount "60"]
[EventDate "2017.??.??"]
[EventType "swiss"]
[EventCountry "LAT"]
[SourceTitle "playchess.com"]
[Source "ChessBase"]
[SourceQuality "1"]
[TimeControl "40/5400+30:1800+30"]

1. e4 {[%emt 0:00:00]} c5 {[%emt 0:00:07]} 2. Nf3 {[%emt 0:00:05]} e6 {[%emt 0:00:17]} 3. d4 {[%emt 0:00:32]} cxd4 {[%emt 0:00:09]} 4. Nxd4 {[%emt 0:00:29]} Nc6 {[%emt 0:00:08]} 5. Nc3 {[%emt 0:00:28]} Qc7 {[%emt 0:00:16]} 6. Be3 {[%emt 0:00:29]} a6 {[%emt 0:00:07]} 7. Qd2 {[%emt 0:00:35]} Nf6 {[%emt 0:00:09]} 8. f3 {[%emt 0:00:30]} Ne5 {[%emt 0:00:29]} 9. O-O-O {[%emt 0:00:50]} b5 {[%emt 0:00:10]} 10. Bd3 {[%emt 0:03:12]} Bb7 {[%emt 0:00:34]} 11. Kb1 {[%emt 0:01:48]} b4 {[%emt 0:01:08]} 12. Nce2 {[%emt 0:00:54]} d5 {[%emt 0:00:13]} 13. exd5 {[%emt 0:01:22]} Nxd5 {[%emt 0:00:48]} 14. Bf2 {[%emt 0:00:46]} Nc4 {[%emt 0:06:13]} 15. Bxc4 {[%emt 0:03:04]} Qxc4 {[%emt 0:00:06]} 16. Nb3 {[%emt 0:02:24]} a5 {[%emt 0:00:45]} 17. Qe1 {[%emt 0:03:01]} Be7 {[%emt 0:01:20]} 18. Ned4 {[%emt 0:01:58]} O-O {[%emt 0:03:39]} 19. h4 {[%emt 0:08:26]} Bf6 {[%emt 0:02:56]} 20. Nd2 {[%emt 0:02:05]} Qc7 {[%emt 0:01:01]} 21. Ne4 {[%emt 0:01:03]} Bxd4 {[%emt 0:06:38]} 22. Bxd4 {[%emt 0:00:36]} e5 {[%emt 0:00:26]} 23. Bf2 {[%emt 0:02:22]} Rfc8 {[%emt 0:01:06]} 24. Nc5 {[%emt 0:04:34]} a4 {[%emt 0:08:12]} 25. Qd2 {[%emt 0:06:59]} Rd8 {[%emt 0:01:47]} 26. Nd3 {[%emt 0:14:36]} a3 {[%emt 0:01:26]} 27. Nxb4 {[%emt 0:14:11]} axb2 {[%emt 0:01:26]} 28. Nxd5 {[%emt 0:05:43]} Bxd5 {[%emt 0:00:43]} 29. Qb4 {[%emt 0:05:06]} Bxa2+ {[%emt 0:00:37]} 30. Kxb2 {[%emt 0:00:06]} Rdb8 {[%emt 0:00:08]} 0-1

[Event "EIWCC 2017"]
[Site "Riga"]
[Date "2017.04.13"]
[Round "3"]
[White "Otikova, Elina"]
[Black "Semenova, Elena"]
[Result "0-1"]
[ECO "C92"]
[WhiteElo "2049"]
[BlackElo "2212"]
[Annotator "NA"]
[PlyCount "64"]
[EventDate "2017.??.??"]
[EventType "swiss"]
[EventCountry "LAT"]
[SourceTitle "playchess.com"]
[Source "ChessBase"]
[SourceQuality "1"]
[TimeControl "40/5400+30:1800+30"]

1. e4 {[%emt 0:00:00]} e5 {[%emt 0:00:15]} 2. Nf3 {[%emt 0:00:00]} Nc6 {[%emt 0:00:04]} 3. Bb5 {[%emt 0:00:00]} a6 {[%emt 0:00:14]} 4. Ba4 {[%emt 0:00:07]} Nf6 {[%emt 0:00:05]} 5. O-O {[%emt 0:00:22]} Be7 {[%emt 0:00:26]} 6. Re1 {[%emt 0:00:15]} b5 {[%emt 0:00:17]} 7. Bb3 {[%emt 0:00:06]} d6 {[%emt 0:00:32]} 8. c3 {[%emt 0:00:21]} O-O {[%emt 0:00:14]} 9. h3 {[%emt 0:00:08]} Bb7 {[%emt 0:00:37]} 10. d4 {[%emt 0:01:09]} Nd7 {[%emt 0:01:20]} 11. Nbd2 {[%emt 0:02:57]} exd4 {[%emt 0:00:46]} 12. cxd4 {[%emt 0:03:54]} Bf6 {[%emt 0:01:05]} 13. Nf1 {[%emt 0:03:18]} Na5 {[%emt 0:02:00]} 14. Bc2 {[%emt 0:01:48]} Re8 {[%emt 0:01:56]} 15. Ng3 {[%emt 0:10:31]} g6 {[%emt 0:02:44]} 16. Bf4 {[%emt 0:03:38]} c5 {[%emt 0:15:05]} 17. Rb1 {[%emt 0:28:12]} cxd4 {[%emt 0:10:47]} 18. Nxd4 {[%emt 0:05:09]} Rc8 {[%emt 0:11:09]} 19. Nde2 {[%emt 0:07:49]} Nc4 {[%emt 0:05:04]} 20. Nd4 {[%emt 0:02:15]} Qb6 {[%emt 0:08:36]} 21. Be3 {[%emt 0:06:24]} Nxe3 {[%emt 0:01:15]} 22. fxe3 {[%emt 0:00:02]} d5 {[%emt 0:06:02]} 23. Rf1 {[%emt 0:01:52]} dxe4 {[%emt 0:04:50]} 24. Qg4 {[%emt 0:05:02]} Bxd4 {[%emt 0:04:36]} 25. Qxd7 {[%emt 0:00:04]} Bxe3+ {[%emt 0:00:26]} 26. Kh1 {[%emt 0:00:07]} Qc7 {[%emt 0:02:19]} 27. Rbd1 {[%emt 0:07:11]} Qxd7 {[%emt 0:00:18]} 28. Rxd7 {[%emt 0:00:01]} Rxc2 {[%emt 0:00:44]} 29. Rxb7 {[%emt 0:03:13]} f5 {[%emt 0:00:24]} 30. Nxf5 {[%emt 0:03:25]} gxf5 {[%emt 0:00:05]} 31. Rxf5 {[%emt 0:00:03]} Rf8 {[%emt 0:01:07]} 32. g4 {[%emt 0:01:19]} Rxf5 {[%emt 0:00:35]} 0-1

[Event "EIWCC 2017"]
[Site "Riga"]
[Date "2017.04.13"]
[Round "3"]
[White "Kouvatsou, Maria"]
[Black "Exler, Veronika"]
[Result "1/2-1/2"]
[ECO "C55"]
[WhiteElo "2016"]
[BlackElo "2208"]
[Annotator "NA"]
[PlyCount "63"]
[EventDate "2017.??.??"]
[EventType "swiss"]
[EventCountry "LAT"]
[SourceTitle "playchess.com"]
[Source "ChessBase"]
[SourceQuality "1"]
[TimeControl "40/5400+30:1800+30"]

1. e4 {[%emt 0:00:00]} e5 {[%emt 0:00:03]} 2. Nf3 {[%emt 0:00:00]} Nc6 {[%emt 0:00:04]} 3. Bc4 {[%emt 0:00:02]} Nf6 {[%emt 0:00:05]} 4. d3 {[%emt 0:00:11]} Be7 {[%emt 0:00:04]} 5. O-O {[%emt 0:00:18]} O-O {[%emt 0:00:05]} 6. Re1 {[%emt 0:00:19]} d6 {[%emt 0:01:20]} 7. c3 {[%emt 0:00:24]} Na5 {[%emt 0:00:11]} 8. Bb5 {[%emt 0:00:05]} a6 {[%emt 0:00:04]} 9. Ba4 {[%emt 0:00:04]} b5 {[%emt 0:00:03]} 10. Bc2 {[%emt 0:00:06]} c5 {[%emt 0:00:03]} 11. Nbd2 {[%emt 0:00:30]} Nc6 {[%emt 0:00:06]} 12. Nf1 {[%emt 0:03:02]} Re8 {[%emt 0:00:06]} 13. h3 {[%emt 0:06:52]} h6 {[%emt 0:00:07]} 14. Ng3 {[%emt 0:02:01]} Be6 {[%emt 0:00:07]} 15. Nh2 {[%emt 0:01:34]} d5 {[%emt 0:02:43]} 16. Qf3 {[%emt 0:00:16]} d4 {[%emt 0:34:42]} 17. Nf5 $15 {[%emt 0:01:53] LiveBook: 4 Games} Bxf5 {[%emt 0:12:14]} 18. Qxf5 {[%emt 0:01:50]} Qa5 {[%emt 0:15:36]} 19. Bd2 {[%emt 0:09:34]} dxc3 {[%emt 0:00:49]} 20. bxc3 {[%emt 0:10:12]} b4 {[%emt 0:00:06]} 21. cxb4 {[%emt 0:03:11]} cxb4 {[%emt 0:00:06]} 22. Be3 {[%emt 0:00:13]} Rad8 {[%emt 0:19:15]} 23. Ng4 {[%emt 0:03:58]} Nxg4 {[%emt 0:04:06]} 24. Qxg4 {[%emt 0:06:49]} Rd6 {[%emt 0:02:11]} 25. Bb3 {[%emt 0:01:08]} Rxd3 {[%emt 0:03:42]} 26. Bd5 {[%emt 0:06:36]} Nd4 {[%emt 0:02:15]} 27. Bxd4 {[%emt 0:00:43]} Rxd4 {[%emt 0:00:12]} 28. Qf5 {[%emt 0:00:36]} Bf6 {[%emt 0:00:27]} 29. Qd7 {[%emt 0:04:38]} Re7 {[%emt 0:03:01]} 30. Qc8+ Kh7 31. Qf5+ {[%emt 0:24:25]} Kg8 {[%emt 0:00:02]} 32. Qc8+ {[%emt 0:02:02]} 1/2-1/2

[Event "EIWCC 2017"]
[Site "Riga"]
[Date "2017.04.13"]
[Round "3"]
[White "Chan, Naruna"]
[Black "Charochkina, Daria"]
[Result "0-1"]
[ECO "B22"]
[WhiteElo "1981"]
[BlackElo "2381"]
[Annotator "NA"]
[PlyCount "142"]
[EventDate "2017.??.??"]
[EventType "swiss"]
[EventCountry "LAT"]
[SourceTitle "playchess.com"]
[Source "ChessBase"]
[SourceQuality "1"]
[TimeControl "40/5400+30:1800+30"]

1. e4 {[%emt 0:00:00]} c5 {[%emt 0:01:34]} 2. c3 {[%emt 0:00:00]} d6 {[%emt 0:00:22]} 3. d4 {[%emt 0:00:24]} Nf6 {[%emt 0:00:14]} 4. Bd3 {[%emt 0:00:32]} Qc7 {[%emt 0:00:05]} 5. Nf3 {[%emt 0:01:16]} Bg4 {[%emt 0:00:10]} 6. O-O {[%emt 0:01:11]} Nc6 {[%emt 0:00:35]} 7. Na3 {[%emt 0:11:26]} a6 {[%emt 0:08:36]} 8. Nc2 {[%emt 0:04:13]} e6 {[%emt 0:03:26]} 9. Re1 {[%emt 0:02:59]} Be7 {[%emt 0:04:10]} 10. h3 {[%emt 0:12:09]} Bh5 {[%emt 0:00:38]} 11. Qe2 {[%emt 0:12:10]} O-O $11 {[%emt 0:04:56]} 12. g4 {[%emt 0:05:45]} Bg6 {[%emt 0:02:24]} 13. Nh4 {[%emt 0:03:43]} Bxe4 {[%emt 0:15:01]} 14. Bxe4 {[%emt 0:00:24]} Nxe4 {[%emt 0:00:04]} 15. Qxe4 {[%emt 0:00:09]} d5 {[%emt 0:00:17]} 16. Qf4 {[%emt 0:00:51]} Qxf4 {[%emt 0:01:14]} 17. Bxf4 {[%emt 0:00:03]} Bxh4 {[%emt 0:00:06]} 18. dxc5 {[%emt 0:04:16]} Be7 {[%emt 0:04:27]} 19. b4 {[%emt 0:00:52]} Bf6 {[%emt 0:00:27]} 20. Re3 {[%emt 0:05:56]} d4 {[%emt 0:23:50]} 21. cxd4 {[%emt 0:01:34]} Nxd4 {[%emt 0:00:18]} 22. Rc1 {[%emt 0:00:41]} Rfd8 {[%emt 0:04:04]} 23. Re4 {[%emt 0:12:17]} Nb5 {[%emt 0:01:12]} 24. Be5 {[%emt 0:07:40]} Bxe5 {[%emt 0:00:33]} 25. Rxe5 {[%emt 0:00:01]} Nc3 {[%emt 0:00:11]} 26. Re3 {[%emt 0:00:40]} Nd5 {[%emt 0:00:22]} 27. Rf3 {[%emt 0:04:07]} g5 {[%emt 0:00:15]} 28. Kh2 {[%emt 0:01:33]} Nf4 {[%emt 0:00:44]} 29. Ne1 {[%emt 0:04:20]} Rd2 {[%emt 0:04:21]} 30. Rc2 {[%emt 0:00:14]} Rad8 {[%emt 0:03:22]} 31. Rfc3 {[%emt 0:00:22]} Rd1 {[%emt 0:09:33]} 32. Ng2 {[%emt 0:00:20]} Nd5 {[%emt 0:02:25]} 33. Rb3 {[%emt 0:00:16]} Rd4 {[%emt 0:02:58]} 34. b5 {[%emt 0:00:23]} Nb4 {[%emt 0:01:08]} 35. Rcb2 {[%emt 0:00:23]} a5 {[%emt 0:00:44]} 36. a3 {[%emt 0:01:13]} Nd3 {[%emt 0:00:10]} 37. Rc2 {[%emt 0:00:02]} a4 {[%emt 0:01:17]} 38. Rbc3 {[%emt 0:00:19]} Ne5 {[%emt 0:00:45]} 39. c6 {[%emt 0:00:24]} bxc6 {[%emt 0:01:48]} 40. bxc6 {[%emt 0:00:00]} Rc8 {[%emt 0:01:03]} 41. Ne3 {[%emt 0:13:39]} f6 {[%emt 0:11:10]} 42. Kg3 {[%emt 0:06:31]} Kf8 {[%emt 0:02:25]} 43. Nc4 {[%emt 0:05:15]} Rxc6 {[%emt 0:03:44]} 44. Nxe5 {[%emt 0:00:07]} Rxc3+ {[%emt 0:00:03]} 45. Rxc3 {[%emt 0:00:04]} fxe5 {[%emt 0:00:03]} 46. Kf3 {[%emt 0:01:21]} Ke7 {[%emt 0:06:29]} 47. Ke3 {[%emt 0:00:20]} Kd6 {[%emt 0:04:31]} 48. Rc8 {[%emt 0:00:25]} Kd5 {[%emt 0:00:20]} 49. Rg8 {[%emt 0:03:29]} h6 {[%emt 0:01:12]} 50. Rg6 {[%emt 0:00:49]} Rc4 {[%emt 0:00:54]} 51. Kd2 {[%emt 0:00:39]} Rf4 {[%emt 0:00:39]} 52. Ke2 {[%emt 0:00:53]} Re4+ {[%emt 0:04:05]} 53. Kd2 {[%emt 0:03:22]} Rd4+ {[%emt 0:00:30]} 54. Ke2 {[%emt 0:00:01]} Re4+ {[%emt 0:00:55]} 55. Kd2 {[%emt 0:00:02]} Kc4 {[%emt 0:00:22]} 56. Rxe6 {[%emt 0:02:36]} Kb3 {[%emt 0:00:12]} 57. Rxh6 {[%emt 0:02:17]} Kxa3 {[%emt 0:00:08]} 58. f3 {[%emt 0:00:19]} Rf4 {[%emt 0:00:37]} 59. Ke3 {[%emt 0:01:08]} Kb3 {[%emt 0:00:07]} 60. h4 {[%emt 0:00:19]} gxh4 {[%emt 0:00:52]} 61. Rxh4 {[%emt 0:01:03]} a3 {[%emt 0:00:31]} 62. Rh1 {[%emt 0:00:02]} a2 {[%emt 0:00:13]} 63. g5 {[%emt 0:00:16]} Rh4 {[%emt 0:01:26]} 64. Rg1 {[%emt 0:00:32]} Rh2 {[%emt 0:00:25]} 65. g6 {[%emt 0:00:47]} Rg2 {[%emt 0:00:13]} 66. Rxg2 {[%emt 0:00:33]} a1=Q {[%emt 0:00:03]} 67. g7 {[%emt 0:00:29]} Qe1+ {[%emt 0:01:12]} 68. Re2 {[%emt 0:00:59]} Qg1+ {[%emt 0:00:11]} 69. Ke4 {[%emt 0:00:26]} Qxg7 {[%emt 0:00:17]} 70. f4 {[%emt 0:00:38]} Qg6+ {[%emt 0:01:07]} 71. Ke3 {[%emt 0:00:30]} Qg3+ 0-1

[Event "EIWCC 2017"]
[Site "Riga"]
[Date "2017.04.14"]
[Round "4"]
[White "Gaponenko, Inna"]
[Black "Sedina, Elena"]
[Result "1-0"]
[ECO "C07"]
[WhiteElo "2416"]
[BlackElo "2253"]
[Annotator "NA"]
[PlyCount "103"]
[EventDate "2017.??.??"]
[EventType "swiss"]
[EventCountry "LAT"]
[SourceTitle "playchess.com"]
[Source "ChessBase"]
[SourceQuality "1"]
[TimeControl "40/5400+30:1800+30"]

1. e4 {[%emt 0:00:00]} e6 {[%emt 0:01:37]} 2. d4 {[%emt 0:00:00]} d5 {[%emt 0:00:04]} 3. Nd2 {[%emt 0:00:00]} c5 {[%emt 0:00:41]} 4. Ngf3 {[%emt 0:00:23]} Nf6 {[%emt 0:02:27]} 5. e5 {[%emt 0:05:07]} Nfd7 {[%emt 0:00:32]} 6. c3 {[%emt 0:00:07]} Nc6 {[%emt 0:00:12]} 7. Bd3 {[%emt 0:00:06]} g6 {[%emt 0:05:43]} 8. h4 {[%emt 0:04:54]} Qb6 {[%emt 0:03:01]} 9. h5 {[%emt 0:02:09]} Rg8 {[%emt 0:02:03]} 10. hxg6 {[%emt 0:51:45]} hxg6 {[%emt 0:00:07]} 11. Qa4 {[%emt 0:00:04]} a6 {[%emt 0:19:03]} 12. a3 {[%emt 0:22:34]} g5 {[%emt 0:29:46]} 13. g4 {[%emt 0:00:04]} cxd4 {[%emt 0:13:37]} 14. cxd4 {[%emt 0:00:01]} Qa7 {[%emt 0:00:47]} 15. Bh7 {[%emt 0:00:07]} Rg7 {[%emt 0:00:28]} 16. Nf1 {[%emt 0:00:09]} Be7 {[%emt 0:04:07]} 17. Be3 {[%emt 0:00:09]} Nf8 {[%emt 0:01:06]} 18. Bd3 {[%emt 0:00:24]} Bd7 {[%emt 0:00:28]} 19. Qd1 {[%emt 0:01:36]} O-O-O {[%emt 0:07:41]} 20. Ng3 {[%emt 0:00:18]} Rg8 {[%emt 0:05:27]} 21. Nh5 {[%emt 0:01:15]} Qb6 {[%emt 0:00:39]} 22. b4 {[%emt 0:00:29]} Ng6 {[%emt 0:00:20]} 23. Nf6 {[%emt 0:03:49]} Bxf6 {[%emt 0:00:24]} 24. exf6 {[%emt 0:00:01]} Nf4 {[%emt 0:00:17]} 25. Rh7 {[%emt 0:02:26]} Rdf8 {[%emt 0:01:31]} 26. Bf1 {[%emt 0:01:20]} Qd8 {[%emt 0:00:36]} 27. Bxf4 {[%emt 0:00:58]} gxf4 {[%emt 0:00:00]} 28. g5 {[%emt 0:00:04]} e5 {[%emt 0:01:07]} 29. Qc1 {[%emt 0:03:27]} Bf5 {[%emt 0:00:28]} 30. Rg7 {[%emt 0:00:37]} Kb8 {[%emt 0:00:29]} 31. dxe5 {[%emt 0:00:13]} Be4 {[%emt 0:00:27]} 32. Qxf4 {[%emt 0:00:14]} Qc7 {[%emt 0:00:12]} 33. Be2 {[%emt 0:00:48]} Rxg7 {[%emt 0:00:27]} 34. fxg7 {[%emt 0:00:04]} Rg8 {[%emt 0:00:01]} 35. Rc1 {[%emt 0:00:56]} Rxg7 {[%emt 0:01:00]} 36. Nd4 {[%emt 0:00:32]} Rh7 {[%emt 0:00:53]} 37. Nxc6+ {[%emt 0:00:33]} bxc6 {[%emt 0:00:01]} 38. Kd2 {[%emt 0:00:15]} Kb7 {[%emt 0:00:39]} 39. f3 {[%emt 0:00:50]} Bg6 {[%emt 0:00:08]} 40. Rc5 {[%emt 0:00:00]} Rh8 {[%emt 0:00:54]} 41. Ra5 {[%emt 0:20:55]} Ra8 {[%emt 0:10:57]} 42. Qf6 {[%emt 0:04:57]} Qd7 {[%emt 0:00:12]} 43. f4 {[%emt 0:02:47]} Qh3 {[%emt 0:11:55]} 44. Qe7+ {[%emt 0:03:09]} Kb6 {[%emt 0:00:05]} 45. Qc5+ {[%emt 0:00:35]} Kb7 {[%emt 0:00:02]} 46. Qe7+ {[%emt 0:01:04]} Kb6 {[%emt 0:03:19]} 47. a4 {[%emt 0:00:06]} Qb3 {[%emt 0:01:59]} 48. Rxa6+ {[%emt 0:00:51]} Rxa6 {[%emt 0:00:12]} 49. a5+ {[%emt 0:00:07]} Rxa5 {[%emt 0:00:22]} 50. bxa5+ {[%emt 0:00:04]} Kxa5 {[%emt 0:00:08]} 51. Qc5+ {[%emt 0:00:16]} Ka4 {[%emt 0:00:06]} 52. Bd1 {[%emt 0:00:42]} 1-0

[Event "EIWCC 2017"]
[Site "Riga"]
[Date "2017.04.14"]
[Round "4"]
[White "Vega Gutierrez, Sabrina"]
[Black "Komiagina, Maria"]
[Result "1-0"]
[ECO "B47"]
[WhiteElo "2413"]
[BlackElo "2247"]
[Annotator "NA"]
[PlyCount "59"]
[EventDate "2017.??.??"]
[EventType "swiss"]
[EventCountry "LAT"]
[SourceTitle "playchess.com"]
[Source "ChessBase"]
[SourceQuality "1"]
[TimeControl "40/5400+30:1800+30"]

1. e4 {[%emt 0:00:00]} c5 {[%emt 0:00:05]} 2. Nf3 {[%emt 0:00:00]} e6 {[%emt 0:00:03]} 3. d4 {[%emt 0:00:11]} cxd4 {[%emt 0:00:08]} 4. Nxd4 {[%emt 0:00:07]} Nc6 {[%emt 0:00:06]} 5. Nc3 {[%emt 0:02:03]} Qc7 {[%emt 0:00:07]} 6. f4 {[%emt 0:02:15]} a6 {[%emt 0:01:45]} 7. Be3 {[%emt 0:00:29]} b5 {[%emt 0:00:19]} 8. Bd3 {[%emt 0:03:43]} Bb7 {[%emt 0:00:38]} 9. Qf3 {[%emt 0:01:34]} Nf6 {[%emt 0:00:36]} 10. g4 {[%emt 0:10:59]} b4 {[%emt 0:03:12]} 11. Nce2 {[%emt 0:02:48]} d5 {[%emt 0:00:36]} 12. e5 {[%emt 0:02:11]} Ne4 {[%emt 0:00:10]} 13. Rf1 {[%emt 0:16:40]} Be7 {[%emt 0:01:40]} 14. Ng3 {[%emt 0:04:06]} Rc8 {[%emt 0:16:08]} 15. O-O-O {[%emt 0:15:49]} b3 {[%emt 0:36:51]} 16. Nxb3 {[%emt 0:02:15]} Nb4 {[%emt 0:00:20]} 17. Kb1 {[%emt 0:00:58]} Nxg3 {[%emt 0:05:09]} 18. Qxg3 {[%emt 0:00:57]} O-O {[%emt 0:02:07]} 19. f5 {[%emt 0:05:57]} f6 {[%emt 0:02:49]} 20. exf6 {[%emt 0:06:52]} Qxg3 {[%emt 0:00:11]} 21. hxg3 {[%emt 0:00:04]} Rxf6 {[%emt 0:00:48]} 22. g5 {[%emt 0:02:29]} Rff8 {[%emt 0:03:14]} 23. fxe6 {[%emt 0:00:03]} Nxd3 {[%emt 0:00:07]} 24. cxd3 {[%emt 0:00:13]} a5 {[%emt 0:01:41]} 25. Nxa5 {[%emt 0:03:12]} Ba6 {[%emt 0:00:07]} 26. Rxf8+ {[%emt 0:00:29]} Bxf8 {[%emt 0:00:08]} 27. Nb3 {[%emt 0:01:20]} Re8 {[%emt 0:00:14]} 28. Bc5 {[%emt 0:01:50]} Rxe6 {[%emt 0:01:35]} 29. Bxf8 {[%emt 0:00:08]} Kxf8 {[%emt 0:00:03]} 30. Nc5 {[%emt 0:00:12]} 1-0